fUSD/lending_fUSD_20240805
["ID","MTS","AMOUNT","RATE_DAILY","PERIOD"]
[334189681,1722820245014,-150.0,0.00024283,2]
[334189683,1722820245035,-150.0,0.0002429,2]
[334189685,1722820245048,-150.0,0.00024291,2]
[334189687,1722820245060,-150.0,0.00024291,2]
[334189689,1722820245072,-150.0,0.00024296,2]
[334189691,1722820245085,-150.0,0.00024296,2]
[334189693,1722820245097,-150.0,0.000243,2]
[334189695,1722820245109,-150.0,0.00024303,2]
[334189697,1722820245120,-150.0,0.00024303,2]
[334189699,1722820245139,-150.0,0.00024305,2]
[334189701,1722820245152,-150.0,0.00024317,2]
[334189703,1722820245165,-150.0,0.00024319,2]
[334189705,1722820245177,-150.0,0.00024319,2]
[334189707,1722820245189,-150.0,0.00024319,2]
[334189709,1722820245202,-150.0,0.00024321,2]
[334189711,1722820245215,-150.0,0.00024323,2]
[334189713,1722820245227,-150.0,0.00024323,2]
[334189715,1722820245248,-150.0,0.00024324,2]
[334189717,1722820245265,-150.0,0.0002433,2]
[334189720,1722820245280,-150.0,0.00024339,2]
[334189722,1722820245291,-150.0,0.00024344,2]
[334189724,1722820245304,-150.0,0.00024347,2]
[334189726,1722820245317,-150.0,0.00024353,2]
[334189728,1722820245328,-150.0,0.0002436,2]
[334189730,1722820245343,-150.0,0.00024362,2]
[334189732,1722820245358,-150.0,0.00024365,2]
[334189734,1722820245371,-150.0,0.00024367,2]
[334189736,1722820245383,-150.0,0.0002437,2]
[334189738,1722820245396,-150.0,0.00024372,2]
[334189740,1722820245408,-150.0,0.00024378,2]
[334189742,1722820245421,-150.0,0.00024379,2]
[334189744,1722820245434,-150.0,0.00024381,2]
[334189746,1722820245447,-150.0,0.00024383,2]
[334189748,1722820245462,-178.213552,0.00024384,2]
[334189750,1722820245475,-150.0,0.00024384,2]
[334189752,1722820245488,-150.0,0.00024384,2]
[334189754,1722820245502,-150.0,0.00024385,2]
[334189756,1722820245513,-150.0,0.00024389,2]
[334189758,1722820245538,-150.0,0.00024395,2]
[334189760,1722820245562,-150.0,0.00024396,2]
[334189762,1722820245575,-150.0,0.00024397,2]
[334189765,1722820245589,-150.0,0.00024397,2]
[334189767,1722820245602,-150.0,0.00024397,2]
[334189769,1722820245613,-150.0,0.00024397,2]
[334189771,1722820245626,-150.0,0.00024398,2]
[334189773,1722820245644,-150.0,0.00024398,2]
[334189775,1722820245658,-150.0,0.00024398,2]
[334189776,1722820245670,-2000.0,0.000244,2]
[334189778,1722820245681,-2000.0,0.000244,2]
[334189780,1722820245694,-494.0,0.000244,7]
[334189782,1722820245704,-1002.56,0.000244,2]
[334189784,1722820245715,-310.32,0.000244,2]
[334189786,1722820245728,-151.0,0.000244,7]
[334189788,1722820245738,-235.183922,0.000244,7]
[334189790,1722820245750,-150.0,0.00024401,2]
[334189793,1722820245763,-150.0,0.00024401,2]
[334189795,1722820245776,-150.0,0.00024404,2]
[334189796,1722820245788,-150.0,0.00024406,2]
[334189797,1722820245799,-207.62448583,0.0002441,2]
[334189808,1722820245908,-150.0,0.00024411,2]
[334189812,1722820245921,-150.0,0.00024411,2]
[334189815,1722820245932,-150.0,0.00024414,2]
[334189818,1722820245944,-150.0,0.00024415,2]
[334189821,1722820245955,-151.0,0.00024416,7]
[334189824,1722820245967,-151.0,0.00024416,7]
[334189826,1722820245983,-150.0,0.00024416,2]
[334189829,1722820245994,-151.0,0.00024416,7]
[334189832,1722820246005,-151.0,0.00024416,7]
[334189835,1722820246016,-151.0,0.00024416,7]
[334189838,1722820246027,-151.775873,0.00024416,7]
[334189841,1722820246039,-151.775873,0.00024416,7]
[334189844,1722820246050,-151.0,0.00024416,7]
[334189847,1722820246061,-51476.156737,0.00024416,2]
[334189850,1722820246072,-6228.1191783,0.00024416,2]
[334189853,1722820246087,-4328.1546908,0.00024416,2]
[334189857,1722820246099,-151.0,0.00024416,7]
[334189860,1722820246110,-151.0,0.00024416,7]
[334189864,1722820246120,-151.0,0.00024416,7]
[334189867,1722820246131,-908.244538,0.00024416,7]
[334189870,1722820246141,-908.244538,0.00024416,7]
[334189873,1722820246152,-350.03856,0.00024416,7]
[334189876,1722820246163,-350.03856,0.00024416,7]
[334189879,1722820246174,-151.0,0.00024416,7]
[334189882,1722820246185,-1230.4693893,0.00024416,2]
[334189885,1722820246197,-151.0,0.00024416,7]
[334189889,1722820246209,-333.595084,0.00024416,2]
[334189893,1722820246221,-150.0,0.0002442,2]
[334189897,1722820246232,-150.01,0.00024422,2]
[334189901,1722820246243,-5951.82189517,0.00024422,2]
[334189904,1722820246255,-207.62448583,0.00024423,2]
[334189907,1722820246274,-29779.11608161,0.00024423,2]
[334189912,1722820246287,-163.02583033,0.00024423,2]
[334189941,1722820246523,-150.0,0.00024423,2]
[334189944,1722820246535,-1370.46596,0.00024423,2]
[334189947,1722820246547,-151.0,0.00024424,7]
[334189950,1722820246558,-151.0,0.00024424,7]
[334189953,1722820246569,-151.0,0.00024424,7]
[334189956,1722820246581,-151.0,0.00024424,7]
[334189959,1722820246593,-159.49897522,0.00024424,2]
[334189961,1722820246603,-11305.5985614,0.00024424,2]
[334189979,1722820246830,-211.24294061,0.00024426,2]
[334189981,1722820246842,-481.71331352,0.00024426,2]
[334189983,1722820246854,-852.93348272,0.00024427,2]
[334189984,1722820246866,-211.24294061,0.00024427,2]
[334189986,1722820246878,-211.24294061,0.00024427,2]
[334189989,1722820246889,-11305.5985614,0.00024429,2]
[334189991,1722820246900,-151.0,0.00024429,7]
[334189994,1722820246912,-151.0,0.00024429,7]
[334189996,1722820246922,-151.0,0.00024429,7]
[334189999,1722820246936,-151.0,0.00024429,7]
[334190002,1722820246949,-194.426301,0.00024429,7]
[334190003,1722820246960,-151.0,0.00024429,7]
[334190006,1722820246971,-151.0,0.00024429,7]
[334190009,1722820246981,-151.775873,0.00024429,7]
[334190011,1722820246992,-151.775873,0.00024429,7]
[334190014,1722820247003,-249.832894,0.00024429,7]
[334190017,1722820247015,-151.0,0.00024429,7]
[334190020,1722820247026,-151.0,0.00024429,7]
[334190022,1722820247039,-151.0,0.00024429,7]
[334190025,1722820247051,-151.0,0.00024429,7]
[334190028,1722820247062,-151.0,0.00024429,7]
[334190031,1722820247074,-151.0,0.00024429,7]
[334190034,1722820247085,-151.0,0.00024429,7]
[334190036,1722820247097,-908.244538,0.00024429,7]
[334190039,1722820247107,-908.244538,0.00024429,7]
[334190042,1722820247118,-350.03856,0.00024429,7]
[334190045,1722820247130,-350.03856,0.00024429,7]
[334190047,1722820247147,-219.732422,0.00024429,7]
[334190050,1722820247159,-151.0,0.00024429,7]
[334190053,1722820247170,-151.0,0.00024429,7]
[334190055,1722820247181,-662205.20180349,0.00024429,2]
[334190057,1722820247192,-163.85736264,0.0002443,2]
[334190061,1722820247203,-11305.5985614,0.00024431,2]
[334190063,1722820247214,-1037.11514276,0.00024431,2]
[334190066,1722820247225,-42247.73252933,0.00024431,2]
[334190069,1722820247236,-1058.52936663,0.00024432,2]
[334190071,1722820247251,-5255.82171318,0.00024433,2]
[334190074,1722820247269,-1705.86696544,0.00024433,2]
[334190077,1722820247280,-159.49897522,0.00024434,2]
[334190079,1722820247291,-1037.11514276,0.00024435,2]
[334190080,1722820247304,-662205.20180349,0.00024436,2]
[334190082,1722820247315,-264.15701,0.00024436,7]
[334190084,1722820247327,-151.0,0.00024436,7]
[334190086,1722820247339,-151.0,0.00024436,7]
[334190088,1722820247358,-151.0,0.00024436,7]
[334190090,1722820247370,-151.0,0.00024436,7]
[334190092,1722820247383,-151.0,0.00024436,7]
[334190094,1722820247394,-151.775873,0.00024436,7]
[334190096,1722820247405,-151.775873,0.00024436,7]
[334190098,1722820247416,-151.0,0.00024436,7]
[334190100,1722820247428,-240.558568,0.00024436,7]
[334190102,1722820247438,-151.0,0.00024436,7]
[334190104,1722820247449,-151.0,0.00024436,7]
[334190105,1722820247463,-151.0,0.00024436,7]
[334190107,1722820247474,-151.0,0.00024436,7]
[334190109,1722820247486,-151.0,0.00024436,7]
[334190111,1722820247498,-908.244538,0.00024436,7]
[334190113,1722820247509,-908.244538,0.00024436,7]
[334190115,1722820247520,-350.03856,0.00024436,7]
[334190117,1722820247532,-350.03856,0.00024436,7]
[334190119,1722820247544,-151.0,0.00024436,7]
[334190121,1722820247555,-151.0,0.00024436,7]
[334190159,1722820247980,-42247.73252933,0.00024438,2]
[334190161,1722820247992,-42247.73252933,0.00024438,2]
[334190163,1722820248003,-159.49897522,0.00024439,2]
[334190165,1722820248014,-211.24294061,0.0002444,2]
[334190167,1722820248026,-5124.21928274,0.00024443,2]
[334190169,1722820248036,-5124.21928274,0.00024444,2]
[334190171,1722820248047,-5255.82171318,0.00024445,2]
[334190173,1722820248058,-11305.5985614,0.00024445,2]
[334190175,1722820248069,-502.34660415,0.00024446,2]
[334190177,1722820248080,-159.49897522,0.00024446,2]
[334190178,1722820248097,-1058.52936663,0.00024449,2]
[334190180,1722820248109,-207.62448583,0.0002445,2]
[334190182,1722820248120,-481.71331352,0.00024451,2]
[334190184,1722820248131,-1037.11514276,0.00024451,2]
[334190186,1722820248142,-5124.21928274,0.00024452,2]
[334190188,1722820248153,-163.85736264,0.00024453,2]
[334190190,1722820248164,-42247.73252933,0.00024454,2]
[334190192,1722820248176,-230.0,0.00024454,2]
[334190194,1722820248188,-217.0,0.00024454,2]
[334190196,1722820248201,-217.0,0.00024454,2]
[334190198,1722820248213,-217.0,0.00024454,2]
[334190200,1722820248225,-217.0,0.00024454,2]
[334190202,1722820248236,-217.0,0.00024454,2]
[334190204,1722820248247,-217.0,0.00024454,2]
[334190206,1722820248261,-217.0,0.00024454,2]
[334190208,1722820248276,-217.0,0.00024454,2]
[334190210,1722820248288,-243.0,0.00024454,2]
[334190212,1722820248300,-243.0,0.00024454,2]
[334190215,1722820248318,-243.0,0.00024454,2]
[334190216,1722820248330,-243.0,0.00024454,2]
[334190218,1722820248341,-852.93348272,0.00024454,2]
[334190221,1722820248355,-468369.2090197,0.00024457,2]
[334190223,1722820248374,-18372.87356982,0.00024457,2]
[334190225,1722820248387,-175463.11921397,0.00024457,2]
[334190227,1722820248399,-151.0,0.00024457,7]
[334190229,1722820248413,-151.0,0.00024457,7]
[334190232,1722820248425,-197.034,0.00024457,7]
[334190234,1722820248437,-151.0,0.00024457,7]
[334190236,1722820248448,-151.0,0.00024457,7]
[334190238,1722820248460,-151.775873,0.00024457,7]
[334190239,1722820248471,-151.775873,0.00024457,7]
[334190241,1722820248482,-151.0,0.00024457,7]
[334190242,1722820248495,-151.0,0.00024457,7]
[334190243,1722820248507,-151.0,0.00024457,7]
[334190244,1722820248521,-151.0,0.00024457,7]
[334190245,1722820248533,-151.0,0.00024457,7]
[334190246,1722820248544,-151.0,0.00024457,7]
[334190247,1722820248577,-908.244538,0.00024457,7]
[334190248,1722820248589,-908.244538,0.00024457,7]
[334190249,1722820248601,-350.03856,0.00024457,7]
[334190250,1722820248614,-350.03856,0.00024457,7]
[334190251,1722820248626,-151.0,0.00024457,7]
[334190252,1722820248637,-151.0,0.00024457,7]
[334190254,1722820248648,-207.62448583,0.00024458,2]
[334190255,1722820248660,-163.85736264,0.00024458,2]
[334190257,1722820248671,-159.49897522,0.00024465,2]
[334190259,1722820248682,-852.93348272,0.00024465,2]
[334190261,1722820248693,-1037.11514276,0.00024465,2]
[334190263,1722820248704,-8807.29778682,0.00024467,2]
[334190265,1722820248716,-207.99976497,0.00024467,2]
[334190285,1722820248937,-634771.40184307,0.00024468,2]
[334190288,1722820248962,-2510.72,0.00024468,2]
[334190290,1722820248976,-4561.22896504,0.00024468,2]
[334190293,1722820248990,-5550.0,0.00024468,2]
[334190295,1722820249005,-2106.62981989,0.00024468,2]
[334190297,1722820249018,-663.2,0.00024468,2]
[334190299,1722820249032,-12042.02117549,0.00024468,2]
[334190302,1722820249046,-151.0,0.00024468,7]
[334190304,1722820249057,-151.0,0.00024468,7]
[334190306,1722820249069,-151.0,0.00024468,7]
[334190308,1722820249098,-151.0,0.00024468,7]
[334190310,1722820249110,-151.775873,0.00024468,7]
[334190312,1722820249121,-151.775873,0.00024468,7]
[334190313,1722820249132,-151.0,0.00024468,7]
[334190315,1722820249143,-151.0,0.00024468,7]
[334190317,1722820249155,-151.0,0.00024468,7]
[334190319,1722820249166,-151.0,0.00024468,7]
[334190321,1722820249177,-151.0,0.00024468,7]
[334190323,1722820249188,-908.244538,0.00024468,7]
[334190325,1722820249200,-908.244538,0.00024468,7]
[334190327,1722820249211,-350.03856,0.00024468,7]
[334190329,1722820249224,-350.03856,0.00024468,7]
[334190331,1722820249235,-151.0,0.00024468,7]
[334190332,1722820249246,-192.93817,0.00024468,7]
[334190333,1722820249263,-852.93348272,0.00024469,2]
[334190334,1722820249275,-400.0,0.0002447,2]
[334190335,1722820249288,-481.71331352,0.00024471,2]
[334190336,1722820249300,-1740.60591627,0.00024472,2]
[334190337,1722820249316,-5579.54473927,0.00024472,2]
[334190338,1722820249330,-380.0,0.00024472,2]
[334190339,1722820249506,-1508.60239947,0.00024472,2]
[334190340,1722820249520,-423.64875431,0.00024472,2]
[334190341,1722820249534,-364.0,0.00024472,2]
[334190342,1722820249548,-470.83343635,0.00024472,2]
[334190343,1722820249562,-704.0,0.00024472,2]
[334190344,1722820249576,-14430.9504,0.00024472,2]
[334190345,1722820249589,-56352.53433867,0.00024472,2]
[334190346,1722820249627,-32053.58892958,0.00024472,2]
[334190348,1722820249641,-1399.99999208,0.00024472,2]
[334190350,1722820249657,-5531.66197748,0.00024472,2]
[334190352,1722820249671,-5107.43938035,0.00024472,2]
[334190354,1722820249685,-563.05754231,0.00024472,2]
[334190371,1722820250202,-320.45776538,0.00019999,2]
[334190373,1722820250214,-138.07223463,0.00020999,2]
[334190375,1722820250229,-452.99999998,0.00020999,2]
[334190377,1722820250243,-1628.30320646,0.00020999,2]
[334190379,1722820250256,-357.10853561,0.00023873,2]
[334190381,1722820250273,-574.58825793,0.00024124,2]
[334190383,1722820250287,-159.45801935,0.00024124,2]
[334190384,1722820250299,-1274.36385477,0.00024124,2]
[334190385,1722820250313,-203.25826837,0.00024124,2]
[334190386,1722820250325,-601.99985751,0.00024472,2]
[334190460,1722820251229,-58261.61058394,0.00024472,2]
[334190462,1722820251242,-1034.08,0.00024472,2]
[334190464,1722820251258,-822.94522872,0.00024472,2]
[334190466,1722820251275,-33516.83752687,0.00024472,2]
[334190467,1722820251288,-617.80465182,0.00024472,2]
[334190468,1722820251305,-1134.30102407,0.00024472,2]
[334190469,1722820251319,-163603.06633816,0.00024472,2]
[334190470,1722820251332,-171099.0,0.00024472,2]
[334190471,1722820251358,-56124.93711098,0.00024472,2]
[334190472,1722820251371,-694.73595147,0.00024472,2]
[334190473,1722820251385,-21896.8,0.00024472,2]
[334190474,1722820251424,-897.843,0.00017067,2]
[334190475,1722820251435,-2734.03837661,0.00024472,2]
[334190476,1722820251449,-19317.75630804,0.00024472,2]
[334190478,1722820251463,-4134.82103916,0.00024472,2]
[334190480,1722820251474,-151.0,0.00024472,7]
[334190482,1722820251486,-151.0,0.00024472,7]
[334190484,1722820251498,-151.0,0.00024472,7]
[334190486,1722820251509,-151.0,0.00024472,7]
[334190488,1722820251521,-151.775873,0.00024472,7]
[334190489,1722820251532,-151.775873,0.00024472,7]
[334190491,1722820251543,-151.0,0.00024472,7]
[334190493,1722820251554,-151.0,0.00024472,7]
[334190496,1722820251566,-214.448692,0.00024472,7]
[334190498,1722820251577,-38.71168487,0.00024472,7]
[334190500,1722820251592,-112.28831513,0.00024472,7]
[334190502,1722820251603,-200.88709017,0.00024472,7]
[334190504,1722820251617,-81.96142083,0.00024472,7]
[334190506,1722820251628,-705.54291498,0.00024472,7]
[334190508,1722820251642,-202.70162302,0.00024472,7]
[334190510,1722820251653,-908.244538,0.00024472,7]
[334190512,1722820251666,-350.03856,0.00024472,7]
[334190514,1722820251678,-350.03856,0.00024472,7]
[334190516,1722820251689,-227.878101,0.00024472,7]
[334190518,1722820251700,-2657.08863438,0.00024473,2]
[334190520,1722820251713,-1897.89860874,0.00024473,2]
[334190524,1722820251774,-722.68329662,0.00020999,2]
[334190525,1722820251787,-75.99284353,0.00024124,2]
[334190526,1722820251808,-131.21686103,0.00024124,2]
[334190527,1722820251819,-302.31905892,0.00024473,2]
[334190528,1722820251835,-266.9129807,0.00024473,2]
[334190529,1722820251846,-1058.52936663,0.00024474,2]
[334190530,1722820251857,-207.99976497,0.00024474,2]
[334190531,1722820251868,-159.49897522,0.00024474,2]
[334190532,1722820251880,-1037.11514276,0.00024475,2]
[334190533,1722820251891,-207.62448583,0.00024475,2]
[334190534,1722820251902,-2062.31928392,0.00024476,2]
[334190535,1722820251916,-538.82229904,0.00024476,2]
[334190536,1722820251930,-8704.45697844,0.00024476,2]
[334190537,1722820251941,-11305.5985614,0.00024476,2]
[334190538,1722820251952,-163.85736264,0.00024476,2]
[334190539,1722820251964,-1037.11514276,0.00024476,2]
[334190540,1722820251983,-207.62448583,0.00024476,2]
[334190541,1722820251994,-1058.52936663,0.00024478,2]
[334190542,1722820252006,-207.99976497,0.00024478,2]
[334190543,1722820252017,-481.71331352,0.00024479,2]
[334190544,1722820252028,-1037.11514276,0.00024479,2]
[334190545,1722820252039,-5255.82171318,0.0002448,2]
[334190546,1722820252050,-481.71331352,0.0002448,2]
[334190547,1722820252061,-852.93348272,0.00024484,2]
[334190548,1722820252073,-211.24294061,0.00024484,2]
[334190549,1722820252088,-1058.52936663,0.00024485,2]
[334190550,1722820252100,-207.99976497,0.00024485,2]
[334190551,1722820252112,-23827.74929943,0.00024487,2]
[334190552,1722820252131,-4000.00044,0.00024487,2]
[334190553,1722820252145,-1824.93501184,0.00024487,2]
[334190554,1722820252159,-703.655,0.00024487,2]
[334190555,1722820252197,-11121.7491,0.00024487,2]
[334190556,1722820252211,-2369.42878876,0.00024487,2]
[334190557,1722820252226,-1396.48607303,0.00024487,2]
[334190558,1722820252242,-616961.19809043,0.00024487,2]
[334190559,1722820252273,-151.0,0.00024487,7]
[334190560,1722820252285,-151.0,0.00024487,7]
[334190561,1722820252300,-151.0,0.00024487,7]
[334190562,1722820252314,-151.0,0.00024487,7]
[334190563,1722820252326,-151.775873,0.00024487,7]
[334190564,1722820252339,-151.775873,0.00024487,7]
[334190565,1722820252354,-151.0,0.00024487,7]
[334190566,1722820252367,-151.0,0.00024487,7]
[334190567,1722820252379,-908.244538,0.00024487,7]
[334190568,1722820252391,-908.244538,0.00024487,7]
[334190569,1722820252406,-350.03856,0.00024487,7]
[334190570,1722820252419,-350.03856,0.00024487,7]
[334190571,1722820252431,-207.62448583,0.00024488,2]
[334190572,1722820252445,-42247.73252933,0.00024488,2]
[334190573,1722820252458,-159.49897522,0.00024489,2]
[334190574,1722820252473,-5255.82171318,0.00024489,2]
[334190575,1722820252485,-481.71331352,0.0002449,2]
[334190576,1722820252498,-163.85736264,0.00024492,2]
[334190577,1722820252512,-2337.51,0.00024493,2]
[334190578,1722820252525,-211.24294061,0.00024494,2]
[334190579,1722820252538,-211.24294061,0.00024494,2]
[334190580,1722820252550,-207.99976497,0.00024495,2]
[334190581,1722820252564,-211.24294061,0.00024495,2]
[334190582,1722820252576,-207.62448583,0.00024496,2]
[334190583,1722820252589,-1058.52936663,0.00024497,2]
[334190584,1722820252602,-159.49897522,0.00024499,2]
[334190585,1722820252618,-11305.5985614,0.00024499,2]
[334190586,1722820252630,-3000.0,0.000245,4]
[334190587,1722820252642,-71868.82,0.000245,5]
[334190588,1722820252653,-1000.0,0.000245,2]
[334190589,1722820252665,-1594.44,0.000245,7]
[334190590,1722820252677,-300.0,0.000245,8]
[334190591,1722820252689,-500.0,0.00024508,7]
[334190592,1722820252701,-400.0,0.0002457,2]
[334190593,1722820252920,-400.0,0.0002457,2]
[334190594,1722820252933,-300.0,0.0002457,2]
[334190595,1722820252945,-397.07753719,0.0002457,2]
[334190596,1722820252956,-2337.51,0.00024575,2]
[334190597,1722820252968,-494.0,0.000246,8]
[334190598,1722820252982,-494.0,0.000246,8]
[334190599,1722820252994,-192.0,0.000246,8]
[334190600,1722820253007,-114966.58,0.000246,5]
[334190601,1722820253019,-344947.18651524,0.000246,7]
[334190602,1722820253042,-80413.53315472,0.000246,7]
[334190603,1722820253056,-74632.24442758,0.000246,7]
[334190604,1722820253068,-151.0,0.000246,7]
[334190605,1722820253080,-151.0,0.000246,7]
[334190606,1722820253091,-151.0,0.000246,7]
[334190607,1722820253102,-151.0,0.000246,7]
[334190608,1722820253113,-151.775873,0.000246,7]
[334190609,1722820253125,-151.775873,0.000246,7]
[334190610,1722820253139,-688.0,0.000246,12]
[334190611,1722820253150,-151.0,0.000246,7]
[334190612,1722820253161,-151.0,0.000246,7]
[334190613,1722820253173,-908.244538,0.000246,7]
[334190614,1722820253185,-908.244538,0.000246,7]
[334190615,1722820253196,-350.03856,0.000246,7]
[334190616,1722820253207,-300.0,0.000246,8]
[334190617,1722820253218,-350.03856,0.000246,7]
[334190618,1722820253229,-500.0,0.00024657,9]
[334190619,1722820253242,-500.40637003,0.00024657,9]
[334190620,1722820253254,-2337.51,0.00024657,2]
[334190621,1722820253271,-833.33,0.00024657,30]
[334190622,1722820253283,-833.33,0.00024657,30]
[334190623,1722820253295,-833.33,0.00024657,30]
[334190624,1722820253308,-833.33,0.00024657,30]
[334190625,1722820253319,-833.33,0.00024657,30]
[334190626,1722820253350,-833.33,0.00024657,30]
[334190627,1722820253362,-833.33,0.00024657,30]
[334190628,1722820253374,-833.33,0.00024657,30]
[334190629,1722820253385,-833.33,0.00024657,30]
[334190630,1722820253398,-833.33,0.00024657,30]
[334190631,1722820253411,-833.33,0.00024657,30]
[334190632,1722820253422,-833.33,0.00024657,30]
[334190633,1722820253434,-833.33,0.00024657,30]
[334190634,1722820253450,-833.33,0.00024657,30]
[334190635,1722820253462,-833.33,0.00024657,30]
[334190636,1722820253473,-833.33,0.00024657,30]
[334190637,1722820253485,-833.33,0.00024657,30]
[334190638,1722820253499,-833.33,0.00024657,30]
[334190639,1722820253511,-833.33,0.00024657,30]
[334190640,1722820253523,-833.33,0.00024657,30]
[334190641,1722820253535,-833.33,0.00024657,30]
[334190642,1722820253548,-833.33,0.00024657,30]
[334190643,1722820253561,-833.33,0.00024657,30]
[334190644,1722820253572,-833.41,0.00024657,30]
[334190645,1722820253584,-6932.8474906,0.00024657,9]
[334190646,1722820253596,-4096.09238094,0.00024657,2]
[334190647,1722820253607,-97384.96264528,0.00024657,9]
[334190648,1722820253619,-500.0,0.00024657,2]
[334190649,1722820253631,-500.0,0.00024657,2]
[334190650,1722820253642,-500.0,0.00024657,2]
[334190651,1722820253654,-500.0,0.00024657,2]
[334190652,1722820253666,-500.0,0.00024657,2]
[334190653,1722820253678,-500.0,0.00024657,2]
[334190654,1722820253690,-244.6,0.00024658,4]
[334190655,1722820253702,-8530.19,0.00024658,4]
[334190656,1722820253714,-400.0,0.0002467,2]
[334190657,1722820253725,-300.0,0.0002467,2]
[334190658,1722820253737,-516.16120834,0.00024699,2]
[334190659,1722820253751,-232.12430525,0.000247,2]
[334190660,1722820253764,-10000.0,0.000247,2]
[334190661,1722820253777,-300.0,0.000247,9]
[334190662,1722820253788,-2337.51,0.00024739,2]
[334190663,1722820253801,-500.0,0.00024781,7]
[334190664,1722820253814,-1252.0,0.000248,20]
[334190665,1722820253827,-11917.0,0.000248,2]
[334190666,1722820253839,-3000.0,0.000248,2]
[334190667,1722820253851,-3000.0,0.000248,2]
[334190668,1722820253863,-3000.0,0.000248,2]
[334190669,1722820253894,-3000.0,0.000248,2]
[334190670,1722820253906,-3000.0,0.000248,2]
[334190671,1722820253918,-3000.0,0.000248,2]
[334190672,1722820253931,-3000.0,0.000248,2]
[334190673,1722820253943,-3000.0,0.000248,2]
[334190674,1722820253955,-3000.0,0.000248,2]
[334190675,1722820253968,-3000.0,0.000248,2]
[334190676,1722820253981,-3000.0,0.000248,2]
[334190677,1722820253993,-3000.0,0.000248,2]
[334190678,1722820254005,-3000.0,0.000248,2]
[334190679,1722820254017,-3000.0,0.000248,2]
[334190680,1722820254029,-728.0,0.000248,9]
[334190681,1722820254041,-2337.51,0.00024821,2]
[334190682,1722820254052,-156.47855141,0.00024883,2]
[334190683,1722820254064,-156.47855141,0.00024883,2]
[334190684,1722820254078,-156.47855141,0.00024883,2]
[334190685,1722820254089,-156.47855141,0.00024883,2]
[334190686,1722820254101,-156.47855141,0.00024883,2]
[334190687,1722820254113,-156.47855141,0.00024883,2]
[334190688,1722820254124,-156.47855141,0.00024883,2]
[334190689,1722820254136,-156.47855141,0.00024883,2]
[334190690,1722820254148,-156.47855141,0.00024883,2]
[334190691,1722820254160,-156.47855141,0.00024883,2]
[334190692,1722820254172,-156.47855141,0.00024883,2]
[334190693,1722820254411,-156.47855141,0.00024883,2]
[334190694,1722820254436,-156.47855141,0.00024883,2]
[334190695,1722820254449,-156.47855141,0.00024883,2]
[334190696,1722820254464,-156.47855141,0.00024883,2]
[334190697,1722820254482,-156.47855141,0.00024883,2]
[334190698,1722820254498,-156.47855141,0.00024883,2]
[334190699,1722820254513,-156.97,0.00024883,2]
[334190700,1722820254525,-563.39778508,0.00024883,2]
[334190701,1722820254538,-563.39778508,0.00024883,2]
[334190702,1722820254549,-563.39778508,0.00024883,2]
[334190703,1722820254561,-563.39778508,0.00024883,2]
[334190704,1722820254573,-563.39778508,0.00024883,2]
[334190705,1722820254584,-563.39778508,0.00024883,2]
[334190706,1722820254601,-563.39778508,0.00024883,2]
[334190707,1722820254614,-563.39778508,0.00024883,2]
[334190708,1722820254626,-563.39778508,0.00024883,2]
[334190709,1722820254638,-563.39778508,0.00024883,2]
[334190710,1722820254650,-563.39778508,0.00024883,2]
[334190711,1722820254662,-563.39778508,0.00024883,2]
[334190712,1722820254673,-563.39778508,0.00024883,2]
[334190713,1722820254685,-563.39778508,0.00024883,2]